Cogmind - Beta 13 X2 @@@ ROGUE MODE // 2024.01.31 @ 21:53:34 Player: IzRey Result: Destroyed by Y-45 Defender with Heavy Assault Rifle Performance ------------- Evolutions (1) 500 Regions Visited (3) 600 Robots Destroyed (4) 20 Value Destroyed (27) 27 Prototype IDs (0) 0 Alien Tech Used (0) 0 Bonus (0) 0 TOTAL SCORE: 1147 Bonus ------- None Cogmind --------- Core Integrity 0/400 Matter 300/300 Energy 99/100 System Corruption 1% Temperature Cool (9) Movement Core (50) Location -9/Materials Parts ------- > --- POWER (1) -------- (None) > --- PROPULSION (3) --- (None) > --- UTILITY (3) ------ (None) > --- WEAPON (2) ------- (None) > --- INVENTORY (5) ---- Light Ion Engine Light Ion Engine EM Pulse Gun Assault Rifle Rocket Launcher Peak State ------------ > --- POWER ------------ Light Ion Engine > --- PROPULSION ------- Flight Unit Flight Unit Flight Unit > --- UTILITY ---------- Improved Terrain Scanner Terrain Scan Processor Seismic Detector > --- WEAPON ----------- EM Pulse Gun Assault Rifle > --- INVENTORY -------- Light Ion Engine Rocket Launcher Mining Claw [Rating: 12] Favorites ----------- Power Light Ion Engine Engine Light Ion Engine Propulsion Flight Unit Flight Unit Flight Unit Utility Seismic Detector Device Seismic Detector Processor Terrain Scan Processor Weapon Assault Rifle Energy Gun EM Pulse Gun Ballistic Gun Assault Rifle Slashing Weapon Mining Claw Build | -11 -10 -10 -9 ------- Run | Yrd Mat Min Mat Slots Evolved 2 | . . . 2 Power . | . . . . Propulsion 1 | . . . 1 Utility 1 | . . . 1 Weapon . | . . . . Parts Attached 10 | 2 4 . 4 Power 1 | . 1 . . Engine 1 | . 1 . . Core . | . . . . Reactor . | . . . . Propulsion 3 | . 2 . 1 Treads . | . . . . Leg . | . . . . Wheel . | . . . . Hover . | . . . . Flight 3 | . 2 . 1 Utility 3 | 1 . . 2 Device 2 | 1 . . 1 Storage . | . . . . Processor 1 | . . . 1 Hackware . | . . . . Protection . | . . . . Artifact . | . . . . Weapon 3 | 1 1 . 1 Energy Gun 1 | . 1 . . Energy Cannon . | . . . . Ballistic Gun 1 | 1 . . . Ballistic Cannon . | . . . . Launcher . | . . . . Special Weapon . | . . . . Impact Weapon . | . . . . Slashing Weapon 1 | . . . 1 Piercing Weapon . | . . . . Special Melee Weapon . | . . . . Unidentified Prototypes . | . . . . Parts Lost 7 | . . . 7 Power . | . . . . Propulsion 3 | . . . 3 Utility 3 | . . . 3 Weapon 1 | . . . 1 Highest Loss Streak 7 | . . . 7 To Critical Strikes . | . . . . Average Slot Usage (%) 64 | . 53 85 59 Engine 8 | . 5 14 6 Flight 19 | . 14 28 17 Device 13 | . 14 14 12 Processor 4 | . . . 9 Energy Gun 6 | . 5 14 2 Ballistic Gun 9 | . 14 14 4 Slashing Weapon 2 | . . . 6 Naked Turns 3 | . . . 3 Heaviest Build 9 | 3 8 8 9 Greatest Support 12 | 3 8 8 12 Greatest Overweight (x) . | . . . . Average Overweight (x) . | . . . . Largest Inventory Capacity 5 | 5 5 5 5 Average Capacity 5 | 5 5 5 5 Most Carried 5 | 5 5 5 5 Average Carried 3 | 3 4 4 4 Final Capacity 5 | 5 5 5 5 Final Carried 5 | 5 3 5 5 Class Distribution -------------------- 100% | Mutant Dominant Class ---------------- Mutant | -10/Materials Mutant | -10/Mines Mutant | -9/Materials Resources | -11 -10 -10 -9 ----------- Run | Yrd Mat Min Mat Matter Collected 302 | 277 . 25 . Remotely . | . . . . Salvage Created 143 | 143 . . . Parts 6 | 6 . . . Haulers Intercepted . | . . . . Recyclers Shooed . | . . . . Parts Field Recycled . | . . . . Retrieved Matter . | . . . . Parts Self-Destructed . | . . . . Prevented . | . . . . Kills | -11 -10 -10 -9 ------- Run | Yrd Mat Min Mat Combat Hostiles Destroyed . | . . . . Classes Destroyed 2 | 2 . . . Tunneler 3 | 3 . . . Recycler 1 | 1 . . . Best Kill Streak 4 | 4 . . . Combat Bots Only . | . . . . Max Kills in Single Turn 1 | 1 . . . Gunslinging . | . . . . Exploded . | . . . . Melee . | . . . . Uniques/NPCs Destroyed . | . . . . Combat | -11 -10 -10 -9 -------- Run | Yrd Mat Min Mat Hostile Shots Fired 71 | . . . 71 Missed 25 | . . . 25 Damage Taken 603 | . . . 603 Core 402 | . . . 402 Absorbed by Shields . | . . . . Core Remaining (%) 100 | 100 . 100 . Volleys Fired 19 | 19 . . . Largest 1 | 1 . . . Hottest 20 | 20 . . . Shots Fired 19 | 19 . . . Gun 19 | 19 . . . Cannon . | . . . . Launcher . | . . . . Special . | . . . . Kinetic 19 | 19 . . . Thermal . | . . . . Explosive . | . . . . Electromagnetic . | . . . . Robot Hit Streak 2 | 2 . . . Robot Miss Streak 2 | 2 . . . Penetration Max . | . . . . Secondary Targets . | . . . . Shots Hit Robots 11 | 10 . . 1 Core Hits 6 | 5 . . 1 Critical Kills . | . . . . Critical Parts Destroyed . | . . . . Critical Strikes . | . . . . Melee Attacks 9 | . . . 9 Impact . | . . . . Slashing 9 | . . . 9 Piercing . | . . . . Sneak Attacks . | . . . . Combat Hostiles . | . . . . Follow-up Attacks . | . . . . Damage Inflicted 173 | 126 . . 47 Guns 126 | 126 . . . Cannons . | . . . . Explosions . | . . . . Melee 23 | . . . 23 Ramming 24 | . . . 24 Kinetic 126 | 126 . . . Thermal . | . . . . Explosive . | . . . . Electromagnetic . | . . . . Impact . | . . . . Slashing 23 | . . . 23 Piercing . | . . . . Highest Corruption 1 | . . . 1 Average Corruption 1 | . . . 1 Corruption Purged . | . . . . Corruption Blocked . | . . . . Overload Shots . | . . . . Overflow Damage . | . . . . Projectiles . | . . . . Explosions . | . . . . Melee . | . . . . Knockbacks . | . . . . Impact . | . . . . Kinetic . | . . . . Secondary . | . . . . Self-Inflicted Damage 11 | . . . 11 Shots . | . . . . Rammed 8 | . . . 8 Targets Rammed 8 | . . . 8 Kicked . | . . . . Crushed . | . . . . Highest Temperature . | . . . . Average Temperature . | . . . . Received Heat Transfer 273 | . . . 273 Siege Activations . | . . . . Robots Corrupted . | . . . . Combat Hostiles . | . . . . Parts Fried . | . . . . Impact Corruptions . | . . . . Robots Melted . | . . . . Combat Hostiles . | . . . . Parts Melted . | . . . . Heat Transferred . | . . . . Parts Sabotaged . | . . . . Parts Stolen . | . . . . Parts Stripped . | . . . . Power Chain Reactions . | . . . . Missiles Intercepted . | . . . . Alert | -11 -10 -10 -9 ------- Run | Yrd Mat Min Mat Peak Influence 103 | 20 103 39 51 Initial 39 | . 13 39 14 Average 25 | 5 47 39 23 Maximum Alert Level . | . . . . Low Security (%) 100 | 100 100 100 100 Level 1 . | . . . . Level 2 . | . . . . Level 3 . | . . . . Level 4 . | . . . . Level 5 . | . . . . High Security . | . . . . Max Security . | . . . . Squads Dispatched 4 | . 3 . 1 Investigation 2 | . 1 . 1 Extermination . | . . . . Reinforcement 2 | . 2 . . Assault . | . . . . Garrison . | . . . . Intercept . | . . . . Searches Triggered . | . . . . Construction Impeded . | . . . . Haulers Reinforced . | . . . . Active Scanning Responses . | . . . . Cargo Convoy Interrupts . | . . . . Stealth | -11 -10 -10 -9 --------- Run | Yrd Mat Min Mat Distress Signals 1 | . . . 1 Communications Jammed . | . . . . Distress Signals . | . . . . Times Spotted 19 | . 6 1 12 Peak Tracking Total 11 | . 4 3 11 Tactical Retreats . | . . . . Traps | -11 -10 -10 -9 ------- Run | Yrd Mat Min Mat Traps Triggered . | . . . . Indirectly . | . . . . Trap Hack Attempts . | . . . . Triggered . | . . . . Disarmed . | . . . . Reprogrammed . | . . . . Reused . | . . . . Traps Extracted . | . . . . Installed . | . . . . Triggered . | . . . . Machines | -11 -10 -10 -9 ---------- Run | Yrd Mat Min Mat Machines Disabled . | . . . . Max in Single Turn . | . . . . Machines Repaired . | . . . . Machines Dismantled . | . . . . Machines Sabotaged . | . . . . Overloaded Fab Kills . | . . . . Hacking | -11 -10 -10 -9 --------- Run | Yrd Mat Min Mat Machines Accessed 3 | . 1 . 2 Terminals 2 | . . . 2 Fabricators . | . . . . Repair Stations . | . . . . Recycling Units 1 | . 1 . . Scanalyzers . | . . . . Garrison Access . | . . . . Total Hacks 7 | . 1 . 6 Successful 4 | . 1 . 3 Failed 3 | . . . 3 Catastrophic 2 | . . . 2 Database Lockouts . | . . . . Manual 6 | . 1 . 5 Terminals 6 | . . . 6 Fabricators . | . . . . Repair Stations . | . . . . Recycling Units 1 | . 1 . . Scanalyzers . | . . . . Garrison Access . | . . . . Terminal Hacks 2 | . . . 2 Robot Analysis 1 | . . . 1 Terminal Index 1 | . . . 1 Fabricator Hacks . | . . . . Repair Station Hacks . | . . . . Recycling Unit Hacks . | . . . . Scanalyzer . | . . . . Garrison Access Hacks . | . . . . Unauthorized Hacks 2 | . 1 . 1 Terminals 1 | . . . 1 Botnet 1 | . . . 1 Fabricators . | . . . . Repair Stations . | . . . . Recycling Units 1 | . 1 . . Tunnel 1 | . 1 . . Scanalyzers . | . . . . Garrison Access . | . . . . Data Cores Recovered . | . . . . Used . | . . . . Hacking Detections 2 | . . . 2 Full Trace Events 1 | . . . 1 Feedback Events . | . . . . Feedback Blocked . | . . . . Robot Schematics Acquired . | . . . . Robots Built . | . . . . Authchips . | . . . . Time . | . . . . Total Robot Build Rating . | . . . . Part Schematics Acquired . | . . . . Parts Built . | . . . . Authchips . | . . . . Time . | . . . . Total Part Build Rating . | . . . . Parts Repaired . | . . . . Time . | . . . . Parts Recycled . | . . . . Recycled Matter . | . . . . Retrieved Matter . | . . . . Retrieved Components . | . . . . Parts Scanalyzed . | . . . . Part Schematics Acquired . | . . . . Parts Damaged . | . . . . Bothacking | -11 -10 -10 -9 ------------ Run | Yrd Mat Min Mat Used RIF Installer . | . . . . Robots Hacked . | . . . . Non-combat . | . . . . Combat . | . . . . Robot Hacks Applied . | . . . . Relay Couplers Released . | . . . . Fabnet Peak Effective % . | . . . . Robots Rewired . | . . . . Allies Hacked . | . . . . Hacks Repelled . | . . . . Allies | -11 -10 -10 -9 -------- Run | Yrd Mat Min Mat Total Allies . | . . . . Largest Group . | . . . . Highest-Rated Group . | . . . . Highest-Rated Ally . | . . . . Total Orders . | . . . . Ally Attacks . | . . . . Total Damage . | . . . . Kills . | . . . . Allies Corrupted . | . . . . Allies Melted . | . . . . Intel | -11 -10 -10 -9 ------- Run | Yrd Mat Min Mat Robot Analysis Total 1 | . . . 1 Derelict Logs Recovered 1 | . . 1 . Drone Launches . | . . . . Drone Recoveries . | . . . . Exploration | -11 -10 -10 -9 ------------- Run | Yrd Mat Min Mat Turns Passed 286 | 89 56 48 93 Spaces Moved 421 | 87 103 103 128 Core 148 | 87 37 . 24 Treads . | . . . . Legs . | . . . . Wheels . | . . . . Hover . | . . . . Flight 273 | . 66 103 104 Fastest Speed 34 | 50 37 37 34 Average Speed 40 | 50 41 37 37 Slowest Speed 50 | 50 50 37 50 Overloaded Moves . | . . . . Propulsion Burnouts . | . . . . Robots Hopped 5 | . 1 . 4 Cave-ins Triggered . | . . . . Exploration Rate (%) 18 | 5 30 20 18 Regions Visited 3 Branch Regions 1 Pre-discovered Areas 1 | . 1 . . Known Exits Taken . | . . . . Unknown Exits Taken 3 | 1 1 1 . Scrap Searched 1 | . . 1 . Spaces Dug 4 | . . . 4 Terrain Destroyed 4 | . . . 4 Melee 4 | . . . 4 Projectile . | . . . . AOE . | . . . . Terrain Rammed . | . . . . Walls Destroyed . | . . . . Machines Disabled . | . . . . Actions | -11 -10 -10 -9 --------- Run | Yrd Mat Min Mat Total 488 | 112 113 112 151 Wait 18 | . 8 6 4 Move 408 | 86 100 102 120 Hop 5 | . 1 . 4 Pick Up 8 | 5 . 3 . Fast Attach 5 | 2 2 . 1 Attach 4 | . 2 . 2 Detach 2 | . . . 2 Swap 1 | . . . 1 Drop 1 | . . 1 . Fire 19 | 19 . . . Melee 9 | . . . 9 Ram 8 | . . . 8 Kick . | . . . . Crush . | . . . . Escape Stasis . | . . . . Rewire . | . . . . Trap . | . . . . Miscellaneous . | . . . . Route ------- -11/Scrapyard -10/Materials -10/Mines -9/Materials (discovered 1 exit: [*Sto]) History --------- Turn | Location | Event 5 | -11/Scrapyard | Discovered new exit (range 15) 90 | -11/Scrapyard | Entered Materials 144 | -10/Materials | Discovered new exit (range 6) 146 | -10/Materials | Entered Mines 156 | -10/Mines | Received a Rocket Launcher from a helpful Derelict 170 | -10/Mines | Learned Materials terminal intel 191 | -10/Mines | Discovered new exit (range 7) 194 | -10/Mines | Entered Materials 194 | -9/Materials | Evolved 2 slots: Propulsion x1, Utility x1 195 | -9/Materials | Loaded intel: 12 terminal locations 215 | -9/Materials | Discovered new exit (range 14) 263 | -9/Materials | Core integrity fell below 50% 270 | -9/Materials | Core integrity fell below 20% 287 | -9/Materials | Destroyed by Y-45 Defender with Heavy Assault Rifle Last Messages --------------- 00218_ Connecting with Terminal... 00228_ U-05 Engineer builds a Wall. 00232_ Flight Unit destroyed. 00241_ U-05 Engineer builds a Wall. 00248_ Imp. Terrain Scanner destroyed. 00248_ U-05 Engineer builds a Wall. 00251_ Seismic Detector destroyed. 00251_ Flight Unit destroyed. 00262_ G-34 Mercenary suffers critical hit (Burn). 00265_ Mining Claw destroyed. 00268_ Slammed into G-34 Mercenary. 00269_ Slammed into A-02 Transporter. 00271_ Slammed into G-34 Mercenary. 00279_ Slammed into W-16 Scout. 00279_ Destabilizing: System interference. 00279_ Terrain Scan Processor temporarily disabled. 00280_ Slammed into W-16 Scout. 00284_ Terrain Scan Processor destroyed. 00284_ System corrupted by crushing effect (+1). 00285_ Slammed into W-16 Scout. Map ----- +----------------------------------------------------+ | ???????????????????????????????????????????????? | | ????????????????????????"""????????????????????? | | ????????????????????????"T"????????#???????????? | | ??????????????????????????????????????"T"??????? | | ??????????????????????????#######???? ?????????? | | ?????????????????????????## #??????????????? | | ?????????????????????????? #??????????????? | | ?????????????????????????? #???????????T"?? | | ?????????????????? ??????? #????????????"?? | | ??????????????????? ????#?# #???? ????????? | | ???????????????????######### #???""""????????? | | ?????????????? ????# ! # ## """"????????? | | ???????????????????# / + """"????????? | | ????????????????#??# g # ## #? ??? | | ???????????????????####/#### #???????????????? | | ??????????????????????#Y#?###/####??#??????????? | | ?????????????T????????# #?# #???#?????????? | | ??????????????? ??????# #?# """ #?#??#????????? | | ?????????#????????????# #?# """ # ? ??????????? | | ?????????????????#??#?# #?# """ #?"????? ?????? | | ???????????????#??????# #?# # T???????????? | | ??????????????????????#%#?# #?"???????????? | | ???????????????????#?## #?# = #? ?????"?????? | | ????????????????#?##??#%#?# "" # ?? ? ???????? | | ??????????????#??#???## #?#] """#???? ????????? | | ???????? ?????#??#???##@### S"#?????????????? | | ??????????????#?????###w### """#?#?#?????????? | | ????????????#????#??# # """##??#?????????? | | ???????????????#???## # #?????????#???? | | ???????????????####?# r #### ####?????###????? | | ????????????? ?# #?#?##???????#???????? | | ????????????# ?# ##????#??????????????? | | ????????????# #### ###########?????#??????? | | ????????????# #??# # #??#??????????? | | ????????????# #??# # """ ##??? ????????? | | ????????????? #??# # "T" #?#???????????? | | ????????#???? #??# # #??#? ????????? | | ????????????? #### # #??????#??????? | | ?????????????? ## # """ #?????????????? | | ??????? ???#??? ## + """ ##????????????? | | ?????????????? ## # """ ##?? ?????????? | | ????"""""???? ?? ## # !#?????????????? | | ?????"""" ?????? ## ##########?????????????? | | ??#??"""" ?######+## #?#?#?????????????????? | | ??# """ # #???#??##?????????????? | | ??# # T #?????????????????????? | | ?## + #?????????????????????? | | ????######## ##### #??????#??????????????? | | ????"" """ # #???###+###?????????????????????? | | ????"" """ # #?????? ? ????????#???????????? | +----------------------------------------------------+ Best States ------------- Heat Dissipation 28 Energy Generation 10 Energy Capacity 125 Matter Stores 300 Matter Capacity 300 Sight Range 16 Terrain Scan Range 16 Terrain Scan Density 85 Evasion (%) 63 Item Schematics ----------------- None Robot Schematics ------------------ None Fabricated ------------ Nothing Alien Tech Used ----------------- None Achievements -------------- None Challenges ------------ None Game ------ Seed ArmorThermicKinecellerator Manual? 0 Play Time 00:10:03 Cumulative 587.5 hours Start 2024.01.31 @ 21:44:22 End 2024.01.31 @ 21:53:34 Sessions 1 Manual Loads 0 Difficulty Rogue Special Mode None Game No. 94 Rogue 77 Adventurer 17 Explorer 0 Win Type - Total 2 Types 2/0/0/0/0/0/0/0/0 Lore% 56 Gallery% 67 Achievement% 56 Wizard Run 0 Options --------- ASCII 0 Keyboard 1 Movement Vi Keybinds 0 Fullscreen 1 Font 18/Terminus Map View 76x50 Zoom Use 0% Tactical HUD 1 Map Filters NONE Filters NONE Steam 1 RUN: 39d70c1c-a86a-4af0-a3cb-f14cdfda7672